bitfinex-derivatives/quotes_BTCF0:USTF0_20250517
["timestamp","ask_amount","ask_price","bid_price","bid_amount"]
[1747473194515,0.57632093,103180.0,103170.0,0.92701722]
[1747473197015,0.38254883,103180.0,103170.0,0.92701722]
[1747473197222,0.57632083,103180.0,103170.0,0.47161722]
[1747473197424,0.57632083,103180.0,103170.0,0.92697722]
[1747473197908,0.31954883,103180.0,103170.0,1.04683683]
[1747473198112,0.51332083,103180.0,103170.0,1.04683683]
[1747473198315,0.31954883,103180.0,103170.0,1.04683683]
[1747473198622,0.54352083,103180.0,103170.0,1.04683683]
[1747473199117,0.54352083,103180.0,103170.0,0.92697722]
[1747473200022,0.54352083,103180.0,103170.0,0.93241938]
[1747473200523,0.54352083,103180.0,103170.0,0.47705938]
[1747473200823,0.54352083,103180.0,103170.0,0.93241938]
[1747473201821,0.34974883,103180.0,103170.0,0.93241938]
[1747473202326,0.34974883,103180.0,103170.0,0.96915638]
[1747473203628,0.34029961,103180.0,103170.0,0.96915638]
[1747473203831,0.31009961,103180.0,103170.0,1.18593999]
[1747473204720,0.34239961,103180.0,103170.0,1.18593999]
[1747473205828,0.34239961,103180.0,103170.0,0.74151638]
[1747473206033,0.34239961,103180.0,103170.0,0.96911638]
[1747473206726,0.3951,103180.0,103170.0,0.93237938]
[1747473208033,0.3951,103180.0,103170.0,0.93233938]
[1747473208433,0.3951,103180.0,103170.0,1.05219899]
[1747473208929,0.3951,103180.0,103170.0,0.59691899]
[1747473209136,0.3951,103180.0,103170.0,1.05219899]
[1747473210032,0.3951,103180.0,103170.0,0.59691899]
[1747473210235,0.588872,103180.0,103170.0,0.93233938]
[1747473210429,0.53129437,103180.0,103170.0,0.47705938]
[1747473210637,0.72506637,103180.0,103170.0,0.47705938]
[1747473211133,0.53129437,103180.0,103170.0,0.47705938]
[1747473211333,0.53129437,103180.0,103170.0,0.59691899]
[1747473212336,0.53129437,103180.0,103170.0,0.5928617]
[1747473213547,0.49969437,103180.0,103170.0,0.5928617]
[1747473213733,0.10659437,103180.0,103170.0,0.71272131]
[1747473213931,0.13979437,103180.0,103170.0,0.71272131]
[1747473214231,0.13979437,103180.0,103170.0,0.5928617]
[1747473214834,0.33356637,103180.0,103170.0,0.47300209]
[1747473215031,0.50059437,103180.0,103170.0,0.70052209]
[1747473215232,0.53069437,103180.0,103170.0,0.92820209]
[1747473215430,0.53069437,103180.0,103170.0,0.70072209]
[1747473215629,0.53069437,103180.0,103170.0,0.92820209]
[1747473216336,0.47092616,103180.0,103170.0,0.92796209]
[1747473216537,0.50402616,103180.0,103170.0,0.92796209]
[1747473216741,0.50402616,103180.0,103170.0,0.60293222]
[1747473216939,0.50402616,103180.0,103170.0,1.05789222]
[1747473218341,0.69779816,103180.0,103170.0,1.05789222]
[1747473218641,0.75756637,103180.0,103170.0,1.05789222]
[1747473218838,0.75756637,103180.0,103170.0,0.31634152]
[1747473218839,0.87742598,103180.0,103170.0,0.31634152]
[1747473219045,0.87742598,103180.0,103170.0,0.51013222]
[1747473219239,0.89195099,103180.0,103170.0,0.31634152]
[1747473219538,0.89195099,103180.0,103170.0,0.51013222]
[1747473219842,0.89195099,103180.0,103170.0,0.51418804]
[1747473220236,0.89495099,103180.0,103170.0,0.51418804]
[1747473220542,0.77509138,103180.0,103170.0,0.51418804]
[1747473221243,0.77509138,103180.0,103170.0,0.73757222]
[1747473222143,0.89495099,103180.0,103170.0,0.73757222]
[1747473222844,0.88055088,103180.0,103170.0,0.73757222]
[1747473225937,0.76069127,103180.0,103170.0,0.76767222]
[1747473226141,0.76069127,103180.0,103170.0,0.79827222]
[1747473226142,0.74616626,103180.0,103170.0,0.79827222]
[1747473226535,0.74616626,103180.0,103170.0,0.83077222]
[1747473227037,0.71306626,103180.0,103170.0,0.83077222]
[1747473227645,0.51929426,103180.0,103170.0,0.95063183]
[1747473228433,0.53431079,103180.0,103170.0,0.95063183]
[1747473228634,0.53431079,103180.0,103170.0,0.85771666]
[1747473231445,0.47419034,103180.0,103170.0,0.85771666]
[1747473231641,0.44409034,103180.0,103170.0,0.85771666]
[1747473232544,0.75772195,103180.0,103170.0,0.93271705]
[1747473232845,0.67106234,103180.0,103170.0,0.95709885]
[1747473233040,0.67106234,103180.0,103170.0,0.50229885]
[1747473233346,0.67106234,103180.0,103170.0,0.98925885]
[1747473234240,0.67106234,103180.0,103170.0,0.53449885]
[1747473234440,0.73118279,103180.0,103170.0,0.98925885]
[1747473234646,0.68793559,103180.0,103170.0,0.98925885]
[1747473234841,0.68793559,103180.0,103170.0,0.76197885]
[1747473235040,0.68793559,103180.0,103170.0,0.98925885]
[1747473235338,0.68793559,103180.0,103170.0,0.95705885]
[1747473235538,0.68793559,103180.0,103170.0,0.92645885]
[1747473236049,0.68793559,103180.0,103170.0,0.91440337]
[1747473237051,0.68793559,103180.0,103170.0,0.94450337]
[1747473237246,0.49416359,103180.0,103170.0,0.94450337]
[1747473237454,0.68793559,103180.0,103170.0,1.06436298]
[1747473237644,0.68793559,103180.0,103170.0,0.60960298]
[1747473237846,0.80992985,103180.0,103170.0,1.06432298]
[1747473238041,0.80992985,103180.0,103170.0,0.71722337]
[1747473238246,0.80992985,103180.0,103170.0,0.91436337]
[1747473238551,0.80992985,103180.0,103170.0,0.45964337]
[1747473238744,0.80992985,103180.0,103170.0,0.91436337]
[1747473240051,0.80992985,103180.0,103170.0,0.45964337]
[1747473240351,0.80992985,103180.0,103170.0,0.92637885]
[1747473240754,0.71973559,103180.0,103170.0,0.92637885]
[1747473242757,0.8395952,103180.0,103170.0,0.92633885]
[1747473242947,0.8395952,103180.0,103170.0,0.47169885]
[1747473243147,0.8395952,103180.0,103170.0,0.92633885]
[1747473243558,0.79450486,103180.0,103170.0,0.92633885]
[1747473243955,0.67464525,103180.0,103170.0,0.92633885]
[1747473244655,0.67464525,103180.0,103170.0,0.86494209]
[1747473246461,0.76483951,103180.0,103170.0,0.86494209]
[1747473247363,0.76483951,103180.0,103170.0,0.89664209]
[1747473248162,0.76483951,103180.0,103170.0,0.95803885]
[1747473248462,0.41408671,103180.0,103170.0,0.95803885]
[1747473248664,0.77488671,103180.0,103170.0,0.95803885]
[1747473249657,0.81998656,103180.0,103170.0,0.95803885]
[1747473250059,0.81998656,103180.0,103170.0,0.50339885]
[1747473250265,0.81998656,103180.0,103170.0,0.95755885]
[1747473250665,0.81998656,103180.0,103170.0,0.50339885]
[1747473250966,0.81998656,103180.0,103170.0,0.95755885]
[1747473251755,0.81998656,103180.0,103170.0,0.95751885]
[1747473252461,0.81998656,103180.0,103170.0,1.02609908]
[1747473252659,0.77488671,103180.0,103170.0,1.02609908]
[1747473254961,0.41408671,103180.0,103170.0,1.02609908]
[1747473255267,0.77488671,103180.0,103170.0,1.02609908]
[1747473256671,0.77488671,103180.0,103170.0,1.14595869]
[1747473256860,0.77488671,103180.0,103170.0,1.02609908]
[1747473257161,0.77488671,103180.0,103170.0,1.02625595]
[1747473257365,0.58111471,103180.0,103170.0,1.10515588]
[1747473257757,0.15531471,103180.0,103170.0,1.60095581]
[1747473257963,0.15531471,103180.0,103170.0,2.08867981]
[1747473258269,0.15531471,103180.0,103170.0,3.10889988]
[1747473258774,0.15531471,103180.0,103170.0,2.74809988]
[1747473258976,0.15531471,103180.0,103170.0,2.11815595]
[1747473259276,0.0663,103180.0,103170.0,2.72896437]
[1747473259672,0.4271,103180.0,103170.0,2.72896437]
[1747473261277,0.4271,103180.0,103170.0,2.12646373]
[1747473261467,0.4271,103180.0,103170.0,2.35334373]
[1747473262073,0.4271,103180.0,103170.0,2.12646373]
[1747473262377,0.4271,103180.0,103170.0,2.23312444]
[1747473262771,0.0663,103180.0,103170.0,2.23312444]
[1747473263071,0.0663,103180.0,103170.0,2.35334373]
[1747473263282,0.11142666,103180.0,103170.0,2.32758516]
[1747473263680,0.11142666,103180.0,103170.0,2.34019551]
[1747473264189,0.47222666,103180.0,103170.0,2.34019551]
[1747473264380,0.11142666,103180.0,103170.0,2.34019551]
[1747473264685,0.66599866,103180.0,103170.0,1.99309622]
[1747473264982,0.69729866,103180.0,103170.0,2.21993622]
[1747473265680,0.69729866,103180.0,103170.0,1.99309622]
[1747473265874,0.69729866,103180.0,103170.0,2.21989622]
[1747473266582,0.84761337,103180.0,103170.0,2.1677463]
[1747473267278,0.84761337,103180.0,103170.0,2.3261463]
[1747473267483,0.84761337,103180.0,103170.0,2.5529463]
[1747473268285,0.84761337,103180.0,103170.0,2.51113919]
[1747473269487,0.80436514,103180.0,103170.0,2.51113919]
[1747473270180,0.44356514,103180.0,103170.0,2.51113919]
[1747473270385,0.80436514,103180.0,103170.0,2.51113919]
[1747473271388,0.92458443,103180.0,103170.0,2.22213919]
[1747473271580,0.92458443,103180.0,103170.0,2.44885919]
[1747473271780,0.92458443,103180.0,103170.0,2.51056005]
[1747473272487,0.87945777,103180.0,103170.0,2.51056005]
[1747473272686,0.91235777,103180.0,103170.0,2.51056005]
[1747473272885,0.79213848,103180.0,103170.0,2.51056005]
[1747473273286,0.79213848,103180.0,103170.0,2.09366005]
[1747473274186,0.91235777,103180.0,103170.0,2.09366005]
[1747473275288,0.91235777,103180.0,103170.0,0.99454005]
[1747473276490,0.79213848,103180.0,103170.0,0.99454005]
[1747473277296,0.79213848,103180.0,103170.0,0.91361929]
[1747473278192,0.79213848,103180.0,103170.0,0.94451929]
[1747473280289,0.59836648,103180.0,103170.0,0.94451929]
[1747473280595,0.56706648,103180.0,103170.0,0.94391929]
[1747473281293,0.76083848,103180.0,103170.0,0.94391929]
[1747473282595,0.40003848,103180.0,103170.0,0.94391929]
[1747473282795,1.12163848,103180.0,103170.0,0.94391929]
[1747473286898,1.12163848,103180.0,103170.0,0.95625982]
[1747473287300,0.89496648,103180.0,103170.0,1.03516962]
[1747473288001,0.53416648,103180.0,103170.0,1.03516962]
[1747473288299,0.51111471,103180.0,103170.0,1.03516962]
[1747473289502,0.46602288,103180.0,103170.0,1.03516962]
[1747473291100,0.10522288,103180.0,103170.0,1.03516962]
[1747473291307,0.46602288,103180.0,103170.0,1.45206962]
[1747473293806,0.10522288,103180.0,103170.0,1.45206962]
[1747473294396,0.10522288,103180.0,103170.0,1.89177942]
[1747473294607,0.10522288,103180.0,103170.0,1.43857942]
[1747473294908,0.10522288,103190.0,103180.0,0.1937719]
[1747473295208,0.10522288,103190.0,103180.0,0.5442817]
[1747473296394,0.10922288,103190.0,103180.0,0.5452817]
[1747473296602,0.10922288,103190.0,103180.0,0.5549636]
[1747473296926,0.11222288,103190.0,103180.0,0.5549636]
[1747473297209,0.11222288,103190.0,103180.0,0.9718636]
[1747473298808,0.14462288,103190.0,103180.0,0.9718636]
[1747473299512,0.08450243,103190.0,103180.0,0.9718636]
[1747473300618,0.08450243,103190.0,103180.0,0.8929538]
[1747473300912,0.08450243,103190.0,103180.0,0.9718636]
[1747473301114,0.08450243,103190.0,103180.0,1.02123988]
[1747473301515,0.05210243,103190.0,103180.0,0.68324968]
[1747473302915,0.05210243,103190.0,103180.0,0.60433988]
[1747473303119,0.05210243,103190.0,103180.0,0.68324968]
[1747473303611,0.05210243,103190.0,103180.0,0.60433988]
[1747473304112,0.11420243,103190.0,103180.0,1.05697988]
[1747473305419,0.11420243,103190.0,103180.0,1.06242204]
[1747473306217,0.11420243,103190.0,103180.0,1.47932204]
[1747473307814,0.08210243,103190.0,103180.0,1.47932204]
[1747473309221,0.05210243,103190.0,103180.0,1.47932204]
[1747473309723,0.05210243,103190.0,103180.0,1.55823184]
[1747473309911,0.05210243,103190.0,103180.0,1.47932204]
[1747473310921,0.05210243,103190.0,103180.0,1.55823184]
[1747473312619,0.05210243,103190.0,103180.0,1.55747184]
[1747473314022,0.007,103190.0,103180.0,1.60962176]
[1747473314224,0.0402,103190.0,103180.0,1.60962176]
[1747473316216,0.0402,103190.0,103180.0,1.40150224]
[1747473316426,0.0705,103190.0,103180.0,1.62734224]
[1747473319025,0.0705,103190.0,103180.0,1.70525073]
[1747473320019,0.0705,103190.0,103180.0,1.47941073]
[1747473320216,0.4313,103190.0,103180.0,1.62131824]
[1747473320423,0.42443748,103190.0,103180.0,1.24854804]
[1747473320612,0.42443748,103190.0,103180.0,1.70022804]
[1747473321127,0.42443748,103190.0,103180.0,1.24854804]
[1747473321329,0.42443748,103190.0,103180.0,1.70022804]
[1747473321821,0.42443748,103190.0,103180.0,1.62231955]
[1747473323429,0.42443748,103190.0,103180.0,1.62227955]
[1747473324230,0.46953991,103190.0,103180.0,1.62227955]
[1747473326437,0.46953991,103190.0,103180.0,1.54336975]
[1747473326937,0.46953991,103190.0,103180.0,1.17063955]
[1747473327232,0.46953991,103190.0,103180.0,1.62219955]
[1747473327628,0.10873991,103190.0,103180.0,1.62219955]
[1747473327931,0.46953991,103190.0,103180.0,1.62219955]
[1747473328129,0.43933991,103190.0,103180.0,1.70110935]
[1747473328327,0.40590243,103190.0,103180.0,1.68881365]
[1747473328528,0.04510243,103190.0,103180.0,1.68881365]
[1747473329126,0.04510243,103190.0,103180.0,1.53099405]
[1747473329424,0.04510243,103190.0,103180.0,1.60990385]
[1747473329628,0.07550243,103190.0,103180.0,1.60986385]
[1747473329927,0.10760243,103190.0,103180.0,1.60986385]
[1747473330928,0.10760243,103190.0,103180.0,1.68777234]
[1747473332440,0.10760243,103190.0,103180.0,1.60886254]
[1747473332642,0.10760243,103190.0,103180.0,1.68777234]
[1747473334036,0.07550243,103190.0,103180.0,1.68777234]
[1747473336740,0.07550243,103190.0,103180.0,1.62606093]
[1747473337232,0.04510243,103190.0,103180.0,1.62606093]
[1747473337641,0.04510243,103190.0,103180.0,1.32159113]
[1747473337950,0.04510243,103190.0,103180.0,1.62594093]
[1747473338141,0.07650243,103190.0,103180.0,1.17454093]
[1747473338343,0.07650243,103190.0,103180.0,1.62594093]
[1747473338543,0.10810243,103190.0,103180.0,1.54703113]
[1747473338744,0.10810243,103190.0,103180.0,1.62594093]
[1747473339557,0.10810243,103190.0,103180.0,1.54703113]
[1747473339742,0.49970243,103190.0,103180.0,1.53682923]
[1747473340238,0.49970243,103190.0,103180.0,1.61083634]
[1747473340438,0.49970243,103190.0,103180.0,1.38539634]
[1747473340634,0.49970243,103190.0,103180.0,1.61083634]
[1747473341452,0.77236543,103190.0,103180.0,1.38539634]
[1747473341640,0.77236543,103190.0,103180.0,1.61083634]
[1747473341952,0.69345563,103190.0,103180.0,1.58073634]
[1747473342948,0.70309279,103190.0,103180.0,1.58073634]
[1747473343143,0.69345563,103190.0,103180.0,1.58073634]
[1747473343344,0.77236543,103190.0,103180.0,1.58073634]
[1747473343851,0.69345563,103190.0,103180.0,1.58073634]
[1747473344053,0.69345563,103190.0,103180.0,1.61393634]
[1747473344753,0.69345563,103190.0,103180.0,1.60168064]
[1747473345051,0.75357608,103190.0,103180.0,1.47162223]
[1747473345351,0.46602288,103190.0,103180.0,1.13363203]
[1747473345652,0.10522288,103190.0,103180.0,1.21254183]
[1747473346443,0.10522288,103190.0,103180.0,1.57334183]
[1747473347353,0.56532288,103200.0,103190.0,0.1937532]
[1747473347540,0.56532288,103200.0,103190.0,0.368363]
[1747473348052,0.20452288,103200.0,103190.0,0.368363]
[1747473348247,0.56532288,103200.0,103190.0,0.548363]
[1747473348753,0.56832288,103200.0,103190.0,0.4704532]
[1747473348947,0.56832288,103200.0,103190.0,0.549363]
[1747473350045,0.57232288,103200.0,103190.0,0.550363]
[1747473351156,0.92387688,103200.0,103190.0,0.18744216]
[1747473351753,0.84496708,103200.0,103190.0,0.41239526]
[1747473351952,0.84496708,103200.0,103190.0,0.86319526]
[1747473352151,0.84496708,103200.0,103190.0,0.68319526]
[1747473352545,0.82993846,103200.0,103190.0,0.68319526]
[1747473352955,0.82993846,103200.0,103190.0,0.23239526]
[1747473353155,0.82993846,103200.0,103190.0,0.86319526]
[1747473353648,0.75102866,103200.0,103190.0,0.94210506]
[1747473353852,0.75102866,103200.0,103190.0,1.06671646]
[1747473354852,0.75102866,103200.0,103190.0,0.98780666]
[1747473357156,0.72089958,103200.0,103190.0,0.98780666]
[1747473358652,0.72089958,103200.0,103190.0,0.96311872]
[1747473360354,0.89000364,103200.0,103190.0,0.96311872]
[1747473360557,0.89000364,103200.0,103190.0,0.73775872]
[1747473360755,0.89000364,103200.0,103190.0,0.93163872]
[1747473363153,1.25080364,103200.0,103190.0,0.93163872]
[1747473363357,1.17189384,103200.0,103190.0,0.97537988]
[1747473365963,1.25080364,103200.0,103190.0,0.52465988]
[1747473366261,1.25080364,103200.0,103190.0,0.46175988]
[1747473366846,1.32971344,103200.0,103190.0,0.43055988]
[1747473367044,1.32971344,103200.0,103190.0,0.61055988]
[1747473367258,1.42661744,103200.0,103190.0,0.43055998]
[1747473367766,1.42661744,103200.0,103190.0,0.23680678]
[1747473367957,1.42661744,103200.0,103190.0,0.43055998]
[1747473368257,1.42661744,103200.0,103190.0,0.25055998]
[1747473368656,1.42661744,103200.0,103190.0,0.28295998]
[1747473368961,1.39661702,103200.0,103190.0,0.25055998]
[1747473369360,1.39661702,103200.0,103190.0,0.05680678]
[1747473369555,1.64661702,103200.0,103190.0,0.05680678]
[1747473371352,1.39661702,103200.0,103190.0,0.05680678]
[1747473371555,1.29971302,103200.0,103190.0,0.25055988]
[1747473371762,1.29971302,103200.0,103190.0,0.28245988]
[1747473372057,1.179454,103200.0,103190.0,0.08870678]
[1747473372261,1.179454,103200.0,103190.0,0.05680678]
[1747473372464,1.276358,103200.0,103190.0,0.05680678]
[1747473373058,1.576358,103200.0,103190.0,0.05680678]
[1747473373252,1.576358,103200.0,103190.0,0.00744216]
[1747473373857,1.576358,103200.0,103190.0,0.20119526]
[1747473374161,1.179454,103200.0,103190.0,0.20119526]
[1747473374359,1.179454,103200.0,103190.0,0.23149526]
[1747473374760,1.259454,103200.0,103190.0,0.23149526]
[1747473375167,1.259454,103200.0,103190.0,0.03774216]
[1747473375672,1.179454,103200.0,103190.0,0.03774216]
[1747473376365,1.179454,103200.0,103190.0,0.23149536]
[1747473376769,1.179454,103200.0,103190.0,0.03774216]
[1747473377169,1.179454,103200.0,103190.0,0.21774216]
[1747473377870,1.179454,103200.0,103190.0,0.41149536]
[1747473378068,1.179454,103200.0,103190.0,0.21774216]
[1747473378263,1.179454,103200.0,103190.0,0.00744216]
[1747473378664,1.29943202,103200.0,103190.0,0.00744216]
[1747473378869,1.39633602,103200.0,103190.0,0.00744216]
[1747473381476,0.1937532,103190.0,103180.0,0.03700467]
[1747473381670,0.8072728,103190.0,103180.0,0.03700467]
[1747473381974,0.728363,103190.0,103180.0,0.03700467]
[1747473382174,0.728363,103190.0,103180.0,0.07360577]
[1747473382776,0.730363,103190.0,103180.0,0.07460577]
[1747473382961,0.8092728,103190.0,103180.0,0.07460577]
[1747473383366,0.8122728,103190.0,103180.0,0.07560577]
[1747473383574,1.1730728,103190.0,103180.0,0.07560577]
[1747473384270,1.29299925,103190.0,103180.0,0.07560577]
[1747473384471,1.29299925,103190.0,103180.0,0.07160467]
[1747473384669,1.21408945,103190.0,103180.0,0.07160467]
[1747473385977,1.29299925,103190.0,103180.0,0.07160467]
[1747473387881,1.13517965,103190.0,103180.0,0.07160467]
[1747473388073,1.21408945,103190.0,103180.0,0.07160467]
[1747473388268,1.21408945,103190.0,103180.0,0.25160467]
[1747473388680,1.21408945,103190.0,103180.0,0.2146]
[1747473389388,1.29299925,103190.0,103180.0,0.2146]
[1747473389684,1.38991125,103190.0,103180.0,0.2146]
[1747473389878,1.19615805,103190.0,103170.0,0.0379739]
[1747473390070,0.1937908,103170.0,103160.0,0.07976462]
[1747473390276,0.7124104,103170.0,103160.0,0.07976462]
[1747473390475,0.7299006,103170.0,103160.0,0.07976462]
[1747473390676,0.7299006,103170.0,103160.0,0.27357422]
[1747473390876,0.73948777,103170.0,103160.0,0.27357422]
[1747473391077,0.73948777,103170.0,103160.0,0.45357422]
[1747473391578,0.73948777,103170.0,103160.0,0.48437422]
[1747473392184,0.74048777,103170.0,103160.0,0.48637422]
[1747473392879,0.74048777,103170.0,103160.0,0.48737422]
[1747473393085,0.74048777,103170.0,103160.0,0.51837422]
[1747473393571,0.66157797,103170.0,103160.0,0.51837422]
[1747473393771,0.78143277,103170.0,103160.0,0.51837422]
[1747473393972,0.86034257,103170.0,103160.0,0.51837422]
[1747473394174,0.86034257,103170.0,103160.0,0.4690096]
[1747473394467,1.22114257,103170.0,103160.0,0.4690096]
[1747473394784,1.22114257,103170.0,103160.0,0.47445176]
[1747473397685,0.49954257,103170.0,103160.0,0.47445176]
[1747473397888,1.22114257,103170.0,103160.0,0.47445176]
[1747473398387,1.23213759,103170.0,103160.0,0.47445176]
[1747473398588,1.31104739,103170.0,103160.0,0.47445176]
[1747473399090,1.23213759,103170.0,103160.0,0.47445176]
[1747473399290,1.31104739,103170.0,103160.0,0.47445176]
[1747473399585,1.27874739,103170.0,103160.0,0.47445176]
[1747473400779,1.16883759,103170.0,103160.0,0.47445176]
[1747473400985,1.24774739,103170.0,103160.0,0.47445176]
[1747473401188,1.12789259,103170.0,103160.0,0.47445176]
[1747473402090,1.11830542,103170.0,103160.0,0.47445176]
[1747473402482,1.00629562,103170.0,103160.0,0.55336156]
[1747473402881,1.00629562,103170.0,103160.0,0.47445176]
[1747473403080,1.08520542,103170.0,103160.0,0.47445176]
[1747473403282,0.89141462,103170.0,103160.0,0.47445176]
[1747473403483,0.81250482,103170.0,103160.0,0.47445176]
[1747473403683,1.00629562,103170.0,103160.0,0.47445176]
[1747473404095,1.02131126,103170.0,103160.0,0.47445176]
[1747473407000,1.02131126,103170.0,103160.0,0.69937176]
[1747473408098,1.10022106,103170.0,103160.0,0.69937176]
[1747473409699,1.10022106,103170.0,103160.0,0.74873638]
[1747473411298,1.02131126,103170.0,103160.0,0.82764618]
[1747473413202,0.66051126,103170.0,103160.0,0.82764618]
[1747473413500,0.75041608,103170.0,103160.0,0.82781797]
[1747473413699,0.78291608,103170.0,103160.0,0.82781797]
[1747473414499,0.86182588,103170.0,103160.0,0.74890817]
[1747473415401,0.86182588,103170.0,103160.0,0.74878817]
[1747473418304,0.92502588,103170.0,103160.0,0.52398817]
[1747473419303,0.92502588,103170.0,103160.0,0.74874817]
[1747473421404,0.92502588,103170.0,103160.0,0.71790817]
[1747473421805,0.92502588,103170.0,103160.0,0.49318817]
[1747473422312,0.88005997,103170.0,103160.0,0.49318817]
[1747473422496,0.88005997,103170.0,103160.0,0.46278817]
[1747473422697,0.88005997,103170.0,103160.0,0.26897857]
[1747473423010,0.88005997,103170.0,103160.0,0.43178817]
[1747473424008,0.88005997,103170.0,103160.0,0.43178807]
[1747473425007,0.80115017,103170.0,103160.0,0.43178807]
[1747473425202,0.88005997,103170.0,103160.0,0.43178807]
[1747473425399,0.8500554,103170.0,103160.0,0.43178807]
[1747473428199,0.9289652,103170.0,103160.0,0.23797857]
[1747473429594,0.9289652,103170.0,103160.0,0.24198773]
[1747473430006,0.9289652,103170.0,103160.0,0.19262311]
[1747473430410,0.1938095,103160.0,103150.0,0.05130345]
[1747473430598,0.6497095,103160.0,103150.0,0.05130345]
[1747473430803,0.8075291,103160.0,103150.0,0.24513175]
[1747473431201,0.8075291,103160.0,103150.0,0.23130345]
[1747473431402,0.8085291,103160.0,103150.0,0.23430345]
[1747473432009,0.8095291,103160.0,103150.0,0.43013175]
[1747473432703,0.8095291,103160.0,103150.0,0.46223175]
[1747473432903,1.1703291,103160.0,103150.0,0.46223175]
[1747473433304,1.29021326,103160.0,103150.0,0.46223175]
[1747473434109,1.42531356,103160.0,103140.0,0.01004349]
[1747473434317,0.3608,103120.0,103050.0,0.02063932]
[1747473434513,0.1939787,103070.0,103050.0,0.04421385]
[1747473434714,1.0733983,103070.0,103060.0,1.2080359]
[1747473435010,1.07453755,103070.0,103060.0,1.11583619]
[1747473435206,1.07453755,103070.0,103060.0,0.49471114]
[1747473435207,1.69470399,103070.0,103060.0,0.49471114]
[1747473435410,1.69470399,103070.0,103060.0,0.13391114]
[1747473435411,1.36579419,103070.0,103060.0,0.13391114]
[1747473435606,2.33946279,103070.0,103040.0,1.22758333]
[1747473435907,1.1523458,103050.0,103040.0,1.22758333]
[1747473436108,1.07457525,103050.0,103040.0,1.22758333]
[1747473436311,1.39629925,103050.0,103040.0,1.22758333]
[1747473436503,1.62093925,103050.0,103040.0,1.22758333]
[1747473436907,1.63136743,103050.0,103040.0,0.001]
[1747473437312,1.67304482,103050.0,103040.0,0.001]
[1747473437505,1.67324482,103050.0,103040.0,0.001]
[1747473437704,1.22492482,103050.0,103040.0,0.001]
[1747473437908,1.67420482,103050.0,103040.0,0.001]
[1747473438307,2.24989974,103050.0,103010.0,0.12617374]
[1747473438507,0.5548729,103020.0,103010.0,0.43228204]
[1747473438706,0.5548729,103020.0,103010.0,0.51986923]
[1747473439006,0.5548729,103020.0,103010.0,0.35076544]
[1747473439202,0.55621215,103020.0,103010.0,0.33667374]
[1747473439519,0.55621215,103020.0,103010.0,0.3421159]
[1747473439712,0.67679934,103020.0,103010.0,0.3421159]
[1747473439904,0.75381929,103020.0,103010.0,0.3421159]
[1747473440106,0.75381929,103020.0,103010.0,0.1631159]
[1747473440302,1.22784558,103020.0,103000.0,0.26471075]
[1747473440508,0.5550917,103010.0,103000.0,0.29571075]
[1747473440707,0.61993355,103010.0,103000.0,0.29571075]
[1747473441003,0.61973355,103010.0,103000.0,0.61040854]
[1747473441312,0.61973355,103010.0,103000.0,0.79040854]
[1747473441812,0.61973355,103010.0,103000.0,0.63069779]
[1747473442013,0.61973355,103010.0,103000.0,0.5101106]
[1747473442317,0.62073355,103010.0,103000.0,0.63069779]
[1747473442514,0.67987858,103010.0,103000.0,0.63069779]
[1747473442817,0.67987858,103010.0,103000.0,0.5101106]
[1747473443017,0.67987858,103010.0,103000.0,0.63509827]
[1747473443206,0.68087858,103010.0,103000.0,0.63509827]
[1747473443404,0.47220841,103010.0,103000.0,0.63509827]
[1747473443814,0.47220841,103010.0,103000.0,1.08461827]
[1747473444012,0.66630011,103010.0,103000.0,1.08461827]
[1747473444619,0.66630011,103010.0,103000.0,1.08481827]
[1747473444915,0.66630011,103010.0,103000.0,0.63509827]
[1747473445308,0.75563809,103010.0,103000.0,0.63509827]
[1747473446514,0.56154639,103010.0,103000.0,0.63509827]
[1747473446813,0.20074639,103010.0,103000.0,0.99589827]
[1747473447013,0.10094639,103010.0,103000.0,0.63509827]
[1747473447220,0.00114639,103010.0,103000.0,1.44653827]
[1747473447413,0.11988416,103020.0,103010.0,0.1940917]
[1747473447604,0.11988416,103020.0,103010.0,0.80590872]
[1747473447810,0.04405909,103020.0,103010.0,0.80590872]
[1747473448010,0.72524426,103040.0,103030.0,0.1940541]
[1747473448215,0.72524426,103040.0,103030.0,0.31464129]
[1747473448519,0.72524426,103040.0,103030.0,0.31904177]
[1747473449219,0.72724426,103040.0,103030.0,0.49904177]
[1747473449422,0.73024426,103040.0,103030.0,0.49904177]
[1747473449825,0.48768416,103040.0,103030.0,0.49904177]
[1747473450322,0.68171946,103040.0,103030.0,0.49904177]
[1747473450527,0.12688416,103040.0,103030.0,0.92194177]
[1747473450821,0.07698416,103040.0,103030.0,0.92194177]
[1747473451011,0.07698416,103040.0,103030.0,1.26899777]
[1747473451211,0.005,103040.0,103030.0,1.26899777]
[1747473451613,0.1939789,103070.0,103060.0,0.1939788]
[1747473451813,0.6177303,103070.0,103060.0,0.00037975]
[1747473452216,0.6481303,103070.0,103060.0,0.18478023]
[1747473452425,0.80131749,103070.0,103060.0,0.18478023]
[1747473453022,0.89934549,103070.0,103060.0,0.18578023]
[1747473453212,0.90034549,103070.0,103060.0,0.18578023]
[1747473454110,0.7797583,103070.0,103060.0,0.18578023]
[1747473454323,0.80331749,103070.0,103060.0,0.18578023]
[1747473454524,0.80231749,103070.0,103060.0,0.18478023]
[1747473454720,0.80331749,103070.0,103060.0,0.18578023]
[1747473454922,0.80731749,103070.0,103060.0,0.18578023]
[1747473455118,0.6877303,103070.0,103060.0,0.37977783]
[1747473455320,0.6877303,103070.0,103060.0,0.41157783]
[1747473455624,0.2009788,103070.0,103060.0,0.76248718]
[1747473455920,0.007,103070.0,103060.0,0.98972718]
[1747473456122,0.007,103070.0,103060.0,1.02252718]
[1747473456727,0.007,103070.0,103060.0,0.57040718]
[1747473456918,0.007,103070.0,103060.0,1.02252718]
[1747473457323,0.007,103070.0,103060.0,1.05462718]
[1747473457918,0.007,103070.0,103060.0,1.15165518]
[1747473458126,0.2009788,103070.0,103060.0,0.69953518]
[1747473458329,0.2009788,103070.0,103060.0,1.05450718]
[1747473458521,0.2009788,103070.0,103060.0,0.60250718]
[1747473458721,0.2009788,103070.0,103060.0,1.05474718]
[1747473458922,0.007,103070.0,103060.0,0.60250718]
[1747473459119,0.001,103070.0,103060.0,1.05670718]
[1747473459325,0.002,103070.0,103060.0,0.60750718]
[1747473459520,0.002,103070.0,103060.0,1.05962718]
[1747473459829,0.05650715,103070.0,103060.0,1.05962718]
[1747473461328,0.05650715,103070.0,103060.0,1.42042718]
[1747473462132,0.05650715,103070.0,103060.0,1.51745518]
[1747473463422,0.05650715,103070.0,103060.0,1.51689518]
[1747473463629,0.05650715,103070.0,103060.0,1.41986718]
[1747473464334,0.04704814,103070.0,103060.0,1.41986718]
[1747473464635,0.04704814,103070.0,103060.0,1.32891521]
[1747473467435,0.04780764,103070.0,103060.0,1.32891521]
[1747473469537,0.04780764,103070.0,103060.0,0.96811521]
[1747473469735,0.04780764,103070.0,103060.0,1.32891521]
[1747473470126,0.04780764,103070.0,103060.0,0.96811521]
[1747473470440,0.19781749,103070.0,103060.0,1.32891521]
[1747473473425,0.19781749,103070.0,103060.0,1.10219521]